Workbook

Sheet Balloon
B1: Blowing Up A Balloon Problem
B3: This DIGMath module lets you investigate
B4: the related rates calculus problem of finding
B5: the rate dr/dt at which the radius r
B6: of a balloon is increasing
B7: when air is being blown into it
C8: at a given rate dV/dt.
A12: What is the maximum radius R (1 - 10 inches) of the balloon?
D13: 6 | E13: =#REF!+D13*(#REF!-#REF!)/100 ->  | F13: =D13 -> 6
A15: How fast (dV/dt) is air being blown
B16: into the balloon (1 to 25 cubic inches per sec)?
D17: 17 | E17: =#REF!+D17*(#REF!-#REF!)/100 ->  | F17: =D17 -> 17
A21: Click each item below for suggestions and investigations
C22: Item 1
C23: Item 2 | L23: Select the radius of the balloon: r = | P23: =IF(O24/2>RMax, RMax,O24/2) -> 4.5 | Q23: inches | R23: Time = | S23: =PI()*x0^3/rate -> 16.8 | T23: seconds
C24: Item 3 | O24: 9 | P24: =Sheet2!#REF!+O24*(Sheet2!#REF!-Sheet2!#REF!)/100 -> 
C25: Item 4
N26: The volume of the balloon is | P26: =PI()*x0^3 -> 286.3 | Q26: cubic inches
A28: To access/download all the DIGMath Apps for Calculus | L28: The volume of the balloon is increasing at a rate of | Q28: =3*PI()*x0^2 -> 190.85 | R28: cubic inches per second
A29: Click this link: | C29: DIGMath for Calculus
A31: Created by: Sheldon P. Gordon
A32: Farmingdale State College
A33: Development of this module was supported by the
A34: NSF's Division of Undergraduate Education
A35: under grants DUE-0310123 and DUE-0442160.

Sheet Sheet2
B1: radius | C1: t | D1: slope | E1: Volume | F1: dr/dt
J2: Rmax = | K2: =RMax -> 6
A3: 0 | B3: 1.00 | C3: =E3/rate -> 0.18 | D3: =($K$2-$K$5)/B3 -> 6 | E3: =PI()*1^3 -> 3.14 | F3: =(B4-B3)/(C4-C3) -> 1.73
A4: 1 | B4: =(E4/PI())^(1/3) -> 1.04 | C4: 0.21 | D4: =($K$2-$K$5)/B4 -> 5.765483354 | E4: =E3+A4*dt -> 3.54 | F4: =(B5-B4)/(C5-C4) -> 1.55 | J4: rate = | K4: =rate -> 17
A5: 2 | B5: =(E5/PI())^(1/3) -> 1.11 | C5: 0.26 | D5: 5.387676696 | E5: 4.34 | F5: 1.34
A6: 3 | B6: 1.21 | C6: 0.33 | D6: 4.967298832 | E6: 5.54 | F6: 1.13
A7: 4 | B7: 1.31 | C7: 0.42 | D7: 4.564975552 | E7: 7.13 | F7: 0.96
A8: 5 | B8: 1.43 | C8: 0.54 | D8: 4.204605375 | E8: 9.13 | F8: 0.82
A9: 6 | B9: 1.54 | C9: 0.68 | D9: 3.890441196 | E9: 11.52 | F9: 0.70
A10: 7 | B10: 1.66 | C10: 0.84 | D10: 3.61885365 | E10: 14.32 | F10: 0.61
A11: 8 | B11: 1.77 | C11: 1.03 | D11: 3.383965085 | E11: 17.51 | F11: 0.54
A12: 9 | B12: 1.89 | C12: 1.24 | D12: 3.179890678 | E12: 21.10 | F12: 0.48 | M12: total time = | N12: =PI()*RMax^3/rate -> 39.91670666 | O12: secs
A13: 10 | B13: 2.00 | C13: 1.48 | D13: 3.001472032 | E13: 25.10 | F13: 0.43 | M13: dt = | N13: =time/100 -> 0.3991670666
A14: 11 | B14: 2.11 | C14: 1.73 | D14: 2.844414485 | E14: 29.49 | F14: 0.39 | I14: First Chart
A15: 12 | B15: 2.22 | C15: 2.02 | D15: 2.705215467 | E15: 34.28 | F15: 0.35 | I15: Vertical Line
A16: 13 | B16: 2.32 | C16: 2.32 | D16: 2.581037137 | E16: 39.47 | F16: 0.32 | J16: =I20 -> 4.5 | K16: 0
A17: 14 | B17: 2.43 | C17: 2.65 | D17: 2.469579381 | E17: 45.05 | F17: 0.29 | J17: =I20 -> 4.5 | K17: =K5 -> 0.00
A18: 15 | B18: 2.53 | C18: 3.00 | D18: 2.368970573 | E18: 51.04 | F18: 0.27
A19: 16 | B19: 2.63 | C19: 3.38 | D19: 2.277679012 | E19: 57.43 | F19: 0.25 | I19: Point
A20: 17 | B20: 2.73 | C20: 3.78 | D20: 2.194442909 | E20: 64.21 | F20: 0.23 | I20: =x0 -> 4.5 | J20: 0
A21: 18 | B21: 2.83 | C21: 4.20 | D21: 2.118215647 | E21: 71.40 | F21: 0.22
A22: 19 | B22: 2.93 | C22: 4.65 | D22: 2.04812308 | E22: 78.98 | F22: 0.20 | I22: Second Chart
A23: 20 | B23: 3.03 | C23: 5.12 | D23: 1.983430177 | E23: 86.97 | F23: 0.19 | I23: Vertical Line
A24: 21 | B24: 3.12 | C24: 5.61 | D24: 1.923514862 | E24: 95.35 | F24: 0.18 | J24: =I38 -> 4.5 | K24: 0
A25: 22 | B25: 3.21 | C25: 6.13 | D25: 1.867847386 | E25: 104.13 | F25: 0.17 | J25: =I38 -> 4.5 | K25: =LOOKUP(x0+0.01,B3:B203,E3:E203) -> 283.7560405
A26: 23 | B26: 3.30 | C26: 6.67 | D26: 1.81597397 | E26: 113.31 | F26: 0.16
A27: 24 | B27: 3.39 | C27: 7.23 | D27: 1.767503744 | E27: 122.89 | F27: 0.15 | I27: Third Chart
A28: 25 | B28: 3.48 | C28: 7.82 | D28: 1.722098258 | E28: 132.87 | F28: 0.14 | I28: Vertical Line
A29: 26 | B29: 3.57 | C29: 8.43 | D29: 1.679462996 | E29: 143.25 | F29: 0.14 | J29: =LOOKUP(x0,B3:B203,C3:C203) -> 16.69153179 | K29: 0
A30: 27 | B30: 3.66 | C30: 9.06 | D30: 1.639340481 | E30: 154.03 | F30: 0.13 | J30: =J29 -> 16.69153179 | K30: =LOOKUP(x0+0.1,B3:B203,E3:E203) -> 298.924389
A31: 28 | B31: 3.75 | C31: 9.72 | D31: 1.601504618 | E31: 165.20 | F31: 0.13
A32: 29 | B32: 3.83 | C32: 10.40 | D32: 1.565756051 | E32: 176.78 | F32: 0.12 | I32: Fourth Chart
A33: 30 | B33: 3.92 | C33: 11.10 | D33: 1.531918308 | E33: 188.75 | F33: 0.12 | I33: Vertical Line
A34: 31 | B34: 4.00 | C34: 11.83 | D34: 1.499834595 | E34: 201.13 | F34: 0.11 | J34: =LOOKUP(x0,B3:B203,C3:C203) -> 16.69153179 | K34: 0
A35: 32 | B35: 4.08 | C35: =E35/rate -> 12.58 | D35: 1.469365118 | E35: 213.90 | F35: 0.11 | J35: =J34 -> 16.69153179 | K35: =LOOKUP(x0,B3:B203,F3:F203) -> 0.08805052186
A36: 33 | B36: 4.17 | C36: 13.36 | D36: 1.44038482 | E36: =E35+A36*dt -> 227.07 | F36: 0.10
A37: 34 | B37: 4.25 | C37: 14.16 | D37: 1.412781482 | E37: 240.65 | F37: 0.10 | I37: Point
A38: 35 | B38: 4.33 | C38: 14.98 | D38: 1.386454103 | E38: 254.62 | F38: 0.09 | I38: =x0 -> 4.5 | J38: 0
A39: 36 | B39: 4.41 | C39: 15.82 | D39: 1.361311521 | E39: 268.99 | F39: 0.09
A40: 37 | B40: 4.49 | C40: 16.69 | D40: 1.337271235 | E40: 283.76 | F40: 0.09 | I40: Point on curve
A41: 38 | B41: 4.57 | C41: 17.58 | D41: 1.314258389 | E41: 298.92 | F41: 0.09 | I41: x= | J41: =I20*J14 -> 0
A42: 39 | B42: 4.64 | C42: 18.50 | D42: 1.292204903 | E42: 314.49 | F42: 0.08 | I42: =x0 -> 4.5 | J42: =LOOKUP(x0,B3:B84,C3:C84) -> 16.69153179
A43: 40 | B43: 4.72 | C43: 19.44 | D43: 1.271048709 | E43: 330.46 | F43: 0.08
A44: 41 | B44: 4.80 | C44: 20.40 | D44: 1.250733104 | E44: 346.82 | F44: 0.08
A45: 42 | B45: 4.87 | C45: 21.39 | D45: 1.231206167 | E45: 363.59 | F45: 0.07
A46: 43 | B46: 4.95 | C46: 22.40 | D46: 1.212420267 | E46: 380.75 | F46: 0.07
A47: 44 | B47: 5.02 | C47: 23.43 | D47: 1.194331622 | E47: 398.32 | F47: 0.07
A48: 45 | B48: 5.10 | C48: 24.49 | D48: 1.176899913 | E48: 416.28 | F48: 0.07
A49: 46 | B49: 5.17 | C49: 25.57 | D49: 1.160087945 | E49: 434.64 | F49: 0.07
A50: 47 | B50: 5.25 | C50: 26.67 | D50: 1.143861344 | E50: 453.40 | F50: 0.06
A51: 48 | B51: 5.32 | C51: 27.80 | D51: 1.128188296 | E51: 472.56 | F51: 0.06
A52: 49 | B52: 5.39 | C52: 28.95 | D52: 1.113039308 | E52: 492.12 | F52: 0.06
A53: 50 | B53: 5.46 | C53: 30.12 | D53: 1.098386995 | E53: 512.08 | F53: 0.06
A54: 51 | B54: 5.53 | C54: 31.32 | D54: 1.084205897 | E54: 532.44 | F54: 0.06
A55: 52 | B55: 5.61 | C55: 32.54 | D55: 1.070472308 | E55: 553.19 | F55: 0.06
A56: 53 | B56: 5.68 | C56: 33.79 | D56: 1.057164126 | E56: 574.35 | F56: 0.06
A57: 54 | B57: 5.75 | C57: 35.05 | D57: 1.044260717 | E57: 595.90 | F57: 0.05
A58: 55 | B58: 5.82 | C58: 36.34 | D58: 1.031742795 | E58: 617.86 | F58: 0.05
A59: 56 | B59: 5.88 | C59: 37.66 | D59: 1.019592313 | E59: 640.21 | F59: 0.05
A60: 57 | B60: 5.95 | C60: 39.00 | D60: 1.007792359 | E60: 662.96 | F60: 0.05
A61: 58 | B61: 6.02 | C61: 40.36 | D61: 0.9963270742 | E61: 686.12 | F61: 0.05
A62: 59 | B62: 6.09 | C62: 41.75 | D62: 0.9851815646 | E62: 709.67 | F62: 0.05
A63: 60 | B63: 6.16 | C63: 43.15 | D63: 0.9743418311 | E63: 733.62 | F63: 0.05
A64: 61 | B64: 6.23 | C64: 44.59 | D64: 0.9637947017 | E64: 757.97 | F64: 0.05
A65: 62 | B65: 6.29 | C65: 46.04 | D65: 0.95352777 | E65: 782.71 | F65: 0.05
A66: 63 | B66: 6.36 | C66: 47.52 | D66: 0.9435293403 | E66: 807.86 | F66: 0.04
A67: 64 | B67: 6.43 | C67: =E67/rate -> 49.02 | D67: 0.933788376 | E67: 833.41 | F67: 0.04
A68: 65 | B68: 6.49 | C68: 50.55 | D68: =($K$2-$K$5)/B68 -> 0.9242944534 | E68: =E67+A68*dt -> 859.35 | F68: =(B69-B68)/(C69-C68) -> 0.04
A69: 66 | B69: =(E69/PI())^(1/3) -> 6.56 | C69: 52.10 | D69: 0.9150377195 | E69: 885.70 | F69: 0.04
A70: 67 | B70: 6.62 | C70: 53.67 | D70: 0.9060088523 | E70: 912.44 | F70: 0.04
A71: 68 | B71: 6.69 | C71: 55.27 | D71: 0.8971990252 | E71: 939.59 | F71: 0.04
A72: 69 | B72: 6.75 | C72: 56.89 | D72: 0.8885998743 | E72: 967.13 | F72: 0.04
A73: 70 | B73: 6.82 | C73: 58.53 | D73: 0.8802034677 | E73: 995.07 | F73: 0.04
A74: 71 | B74: 6.88 | C74: 60.20 | D74: 0.8720022777 | E74: 1023.41 | F74: 0.04
A75: 72 | B75: 6.94 | C75: 61.89 | D75: 0.8639891548 | E75: 1052.15 | F75: 0.04
A76: 73 | B76: 7.01 | C76: 63.61 | D76: 0.8561573042 | E76: 1081.29 | F76: 0.04
A77: 74 | B77: 7.07 | C77: 65.34 | D77: 0.8485002635 | E77: 1110.83 | F77: 0.04
A78: 75 | B78: 7.13 | C78: 67.10 | D78: 0.8410118824 | E78: 1140.77 | F78: 0.04
A79: 76 | B79: 7.20 | C79: 68.89 | D79: 0.8336863038 | E79: 1171.10 | F79: 0.03
A80: 77 | B80: 7.26 | C80: 70.70 | D80: 0.8265179462 | E80: 1201.84 | F80: 0.03
A81: 78 | B81: 7.32 | C81: 72.53 | D81: 0.8195014875 | E81: 1232.98 | F81: 0.03
A82: 79 | B82: 7.38 | C82: 74.38 | D82: 0.8126318499 | E82: 1264.51 | F82: 0.03
A83: 80 | B83: 7.45 | C83: 76.26 | D83: 0.8059041856 | E83: 1296.44 | F83: 0.03
A84: 81 | B84: 7.51 | C84: 78.16 | D84: 0.7993138642 | E84: 1328.78 | F84: 0.03
A85: 82 | B85: 7.57 | C85: 80.09 | D85: 0.7928564599 | E85: 1361.51 | F85: 0.03
A86: 83 | B86: 7.63 | C86: 82.04 | D86: 0.7865277404 | E86: 1394.64 | F86: 0.03
A87: 84 | B87: 7.69 | C87: 84.01 | D87: 0.7803236564 | E87: 1428.17 | F87: 0.03
A88: 85 | B88: 7.75 | C88: 86.01 | D88: 0.7742403315 | E88: 1462.10 | F88: 0.03
A89: 86 | B89: 7.81 | C89: 88.03 | D89: 0.768274053 | E89: 1496.43 | F89: 0.03
A90: 87 | B90: 7.87 | C90: 90.07 | D90: 0.762421263 | E90: 1531.15 | F90: 0.03
A91: 88 | B91: 7.93 | C91: 92.13 | D91: 0.7566785506 | E91: 1566.28 | F91: 0.03
A92: 89 | B92: 7.99 | C92: 94.22 | D92: 0.7510426441 | E92: 1601.81 | F92: 0.03
A93: 90 | B93: 8.05 | C93: 96.34 | D93: 0.7455104038 | E93: 1637.73 | F93: 0.03
A94: 91 | B94: 8.11 | C94: 98.47 | D94: 0.7400788156 | E94: 1674.05 | F94: 0.03
A95: 92 | B95: 8.17 | C95: 100.63 | D95: 0.7347449842 | E95: 1710.78 | F95: 0.03
A96: 93 | B96: 8.22 | C96: 102.82 | D96: 0.7295061277 | E96: 1747.90 | F96: 0.03
A97: 94 | B97: 8.28 | C97: 105.02 | D97: 0.7243595715 | E97: 1785.42 | F97: 0.03
A98: 95 | B98: 8.34 | C98: 107.26 | D98: 0.7193027437 | E98: 1823.34 | F98: 0.03
A99: 96 | B99: 8.40 | C99: 109.51 | D99: 0.7143331697 | E99: 1861.66 | F99: 0.03
A100: 97 | B100: 8.46 | C100: 111.79 | D100: 0.7094484675 | E100: 1900.38 | F100: 0.03
A101: 98 | B101: 8.51 | C101: 114.09 | D101: 0.7046463439 | E101: 1939.50 | F101: 0.02
A102: 99 | B102: 8.57 | C102: 116.41 | D102: 0.6999245896 | E102: 1979.02 | F102: 0.02
A103: 100 | B103: 8.63 | C103: 118.76 | D103: 0.6952810759 | E103: 2018.94

Sheet Sheet1
